[Event "Titled Tuesday Blitz August 3 2021"]
[White "Aitbayev, Aslan"]
[Black "Seletsky, Grigory"]
[WhiteFideId "13704613"]
[BlackFideId "14112191"]
[WhiteElo "2417"]
[BlackElo "2492"]
[Result "1-0"]
[Round "03"]
[TimeControl "180+1"]
[Date "2021.08.03"]
[WhiteClock "0:00:57"]
[BlackClock "0:01:14"]

1. e4 {[%clk 0:03:00]}  e6 {[%clk 0:02:58]} 2. d4 {[%clk 0:03:00]}  d5 {[%clk 0:02:58]} 3. e5 {[%clk 0:03:01]}  c5 {[%clk 0:02:57]} 4. c3 {[%clk 0:03:02]}  Nc6 {[%clk 0:02:57]} 5. Nf3 {[%clk 0:03:02]}  Bd7 {[%clk 0:02:58]} 6. Be2 {[%clk 0:03:01]}  Rc8 {[%clk 0:02:58]} 7. O-O {[%clk 0:03:00]}  cxd4 {[%clk 0:02:57]} 8. cxd4 {[%clk 0:03:01]}  Nge7 {[%clk 0:02:57]} 9. Nc3 {[%clk 0:02:57]}  Nf5 {[%clk 0:02:56]} 10. Be3 {[%clk 0:02:54]}  Be7 {[%clk 0:02:48]} 11. Bd3 {[%clk 0:02:54]}  Nxe3 {[%clk 0:02:47]} 12. fxe3 {[%clk 0:02:55]}  O-O {[%clk 0:02:47]} 13. Rc1 {[%clk 0:02:34]}  Na5 {[%clk 0:02:41]} 14. Qc2 {[%clk 0:02:30]}  g6 {[%clk 0:02:39]} 15. Qf2 {[%clk 0:02:18]}  Nc4 {[%clk 0:02:37]} 16. h4 {[%clk 0:02:16]}  b5 {[%clk 0:02:32]} 17. Rc2 {[%clk 0:02:07]}  b4 {[%clk 0:02:31]} 18. Ne2 {[%clk 0:02:07]}  Nb6 {[%clk 0:02:26]} 19. Rxc8 {[%clk 0:02:01]}  Qxc8 {[%clk 0:02:21]} 20. Nf4 {[%clk 0:01:50]}  Qe8 {[%clk 0:01:46]} 21. Qg3 {[%clk 0:01:29]}  Kh8 {[%clk 0:01:30]} 22. Rc1 {[%clk 0:01:23]}  Bd8 {[%clk 0:01:28]} 23. h5 {[%clk 0:01:14]}  Bb5 {[%clk 0:01:26]} 24. hxg6 {[%clk 0:01:07]}  hxg6 {[%clk 0:01:22]} 25. Bxg6 {[%clk 0:00:58]}  fxg6 {[%clk 0:01:16]} 26. Nxg6+ {[%clk 0:00:59]}  Kh7 {[%clk 0:01:15]} 27. Nxf8+ {[%clk 0:00:57]}  Qxf8 {[%clk 0:01:14]} 28. Kf2 {[%clk 0:00:57]} 1-0


[Site "https://www.chess.com"]

[Event "Titled Tuesday Blitz August 3 2021"]
[White "Alavkin, Arseny"]
[Black "Goltsev, Dmitry"]
[WhiteFideId "4120612"]
[BlackFideId "24176710"]
[WhiteElo "2401"]
[BlackElo "2366"]
[Result "1-0"]
[Round "03"]
[TimeControl "180+1"]
[Date "2021.08.03"]
[WhiteClock "0:00:30"]
[BlackClock "0:00:16"]

1. e4 {[%clk 0:03:00]}  e6 {[%clk 0:02:53]} 2. d4 {[%clk 0:03:00]}  d5 {[%clk 0:02:54]} 3. exd5 {[%clk 0:03:00]}  exd5 {[%clk 0:02:55]} 4. Nf3 {[%clk 0:03:01]}  Nf6 {[%clk 0:02:54]} 5. Bd3 {[%clk 0:03:00]}  c5 {[%clk 0:02:53]} 6. O-O {[%clk 0:02:57]}  Be7 {[%clk 0:02:48]} 7. Re1 {[%clk 0:02:57]}  O-O {[%clk 0:02:47]} 8. h3 {[%clk 0:02:56]}  Nc6 {[%clk 0:02:43]} 9. c3 {[%clk 0:02:55]}  a6 {[%clk 0:02:38]} 10. Bg5 {[%clk 0:02:52]}  h6 {[%clk 0:02:34]} 11. Bh4 {[%clk 0:02:51]}  g5 {[%clk 0:02:17]} 12. Bg3 {[%clk 0:02:48]}  Nh5 {[%clk 0:02:13]} 13. Bh2 {[%clk 0:02:39]}  Nf4 {[%clk 0:02:05]} 14. Bxf4 {[%clk 0:02:36]}  gxf4 {[%clk 0:02:06]} 15. Nbd2 {[%clk 0:02:24]}  b6 {[%clk 0:01:55]} 16. Ne5 {[%clk 0:02:19]}  Nxe5 {[%clk 0:01:40]} 17. Rxe5 {[%clk 0:02:19]}  Bf6 {[%clk 0:01:35]} 18. Rh5 {[%clk 0:02:18]}  Kg7 {[%clk 0:01:28]} 19. Nf3 {[%clk 0:02:15]}  Be6 {[%clk 0:01:15]} 20. Qd2 {[%clk 0:02:06]}  Qd6 {[%clk 0:01:13]} 21. Ne5 {[%clk 0:02:07]}  Rh8 {[%clk 0:00:43]} 22. Qxf4 {[%clk 0:02:05]}  Bg5 {[%clk 0:00:42]} 23. Qg3 {[%clk 0:01:28]}  cxd4 {[%clk 0:00:09]} 24. f4 {[%clk 0:01:15]}  dxc3 {[%clk 0:00:07]} 25. fxg5 {[%clk 0:01:13]}  cxb2 {[%clk 0:00:06]} 26. gxh6+ {[%clk 0:01:11]}  Kf8 {[%clk 0:00:06]} 27. Ng6+ {[%clk 0:01:02]}  Ke8 {[%clk 0:00:06]} 28. Qxd6 {[%clk 0:00:58]}  bxa1=Q+ {[%clk 0:00:06]} 29. Kh2 {[%clk 0:00:58]}  Qf6 {[%clk 0:00:04]} 30. Qc6+ {[%clk 0:00:55]}  Kd8 {[%clk 0:00:03]} 31. Qxa8+ {[%clk 0:00:55]}  Bc8 {[%clk 0:00:02]} 32. Qxd5+ {[%clk 0:00:54]}  Bd7 {[%clk 0:00:03]} 33. Qa8+ {[%clk 0:00:47]}  Bc8 {[%clk 0:00:03]} 34. Qd5+ {[%clk 0:00:25]}  Bd7 {[%clk 0:00:03]} 35. Nxh8 {[%clk 0:00:18]}  Qf4+ {[%clk 0:00:03]} 36. g3 {[%clk 0:00:18]}  Qd2+ {[%clk 0:00:04]} 37. Qg2 {[%clk 0:00:19]}  Qxd3 {[%clk 0:00:04]} 38. Nxf7+ {[%clk 0:00:20]}  Ke7 {[%clk 0:00:04]} 39. h7 {[%clk 0:00:20]}  Bc6 {[%clk 0:00:04]} 40. h8=Q {[%clk 0:00:18]}  Bxg2 {[%clk 0:00:03]} 41. Qe5+ {[%clk 0:00:19]}  Kd7 {[%clk 0:00:01]} 42. Qd6+ {[%clk 0:00:18]}  Qxd6 {[%clk 0:00:01]} 43. Nxd6 {[%clk 0:00:18]}  Bf3 {[%clk 0:00:02]} 44. Rh6 {[%clk 0:00:18]}  b5 {[%clk 0:00:03]} 45. Nf5 {[%clk 0:00:17]}  a5 {[%clk 0:00:03]} 46. Nd4 {[%clk 0:00:17]}  Be2 {[%clk 0:00:03]} 47. Nxe2 {[%clk 0:00:17]}  Kc7 {[%clk 0:00:03]} 48. Nd4 {[%clk 0:00:18]}  b4 {[%clk 0:00:04]} 49. Nb5+ {[%clk 0:00:19]}  Kb7 {[%clk 0:00:05]} 50. Nd4 {[%clk 0:00:20]}  Ka7 {[%clk 0:00:05]} 51. Rh5 {[%clk 0:00:21]}  Kb7 {[%clk 0:00:05]} 52. Rxa5 {[%clk 0:00:21]}  Kb6 {[%clk 0:00:06]} 53. Rb5+ {[%clk 0:00:22]}  Kc7 {[%clk 0:00:07]} 54. Rxb4 {[%clk 0:00:23]}  Kd6 {[%clk 0:00:08]} 55. Rb5 {[%clk 0:00:23]}  Kc7 {[%clk 0:00:08]} 56. h4 {[%clk 0:00:24]}  Kd6 {[%clk 0:00:09]} 57. h5 {[%clk 0:00:25]}  Kc7 {[%clk 0:00:10]} 58. g4 {[%clk 0:00:26]}  Kd6 {[%clk 0:00:11]} 59. g5 {[%clk 0:00:27]}  Kc7 {[%clk 0:00:12]} 60. h6 {[%clk 0:00:28]}  Kd6 {[%clk 0:00:13]} 61. h7 {[%clk 0:00:29]}  Ke7 {[%clk 0:00:14]} 62. h8=Q {[%clk 0:00:29]}  Kf7 {[%clk 0:00:15]} 63. Qf6+ {[%clk 0:00:30]}  Ke8 {[%clk 0:00:15]} 64. Rb8+ {[%clk 0:00:29]}  Kd7 {[%clk 0:00:16]} 65. Qd8# {[%clk 0:00:30]} 1-0


[Site "https://www.chess.com"]

[Event "Titled Tuesday Blitz August 3 2021"]
[White "Andrews, Todd"]
[Black "Wei, Yi"]
[WhiteFideId "2012456"]
[BlackFideId "8603405"]
[WhiteElo "2422"]
[BlackElo "2686"]
[Result "0-1"]
[Round "03"]
[TimeControl "180+1"]
[Date "2021.08.03"]
[WhiteClock "0:00:22"]
[BlackClock "0:00:27"]

1. d4 {[%clk 0:03:00]}  Nf6 {[%clk 0:02:59]} 2. c4 {[%clk 0:03:00]}  g6 {[%clk 0:02:58]} 3. Nc3 {[%clk 0:03:00]}  d5 {[%clk 0:02:58]} 4. Bf4 {[%clk 0:02:58]}  Bg7 {[%clk 0:02:58]} 5. Rc1 {[%clk 0:02:58]}  c5 {[%clk 0:02:45]} 6. dxc5 {[%clk 0:02:58]}  d4 {[%clk 0:02:25]} 7. Nb5 {[%clk 0:02:45]}  Nh5 {[%clk 0:02:16]} 8. Bxb8 {[%clk 0:02:09]}  Rxb8 {[%clk 0:02:14]} 9. Nf3 {[%clk 0:02:00]}  O-O {[%clk 0:01:50]} 10. Nfxd4 {[%clk 0:01:51]}  a6 {[%clk 0:01:45]} 11. e3 {[%clk 0:01:51]}  axb5 {[%clk 0:01:44]} 12. cxb5 {[%clk 0:01:52]}  Qa5+ {[%clk 0:01:36]} 13. Qd2 {[%clk 0:01:50]}  Qxd2+ {[%clk 0:01:30]} 14. Kxd2 {[%clk 0:01:50]}  Rd8 {[%clk 0:01:29]} 15. Kc3 {[%clk 0:01:38]}  Nf4 {[%clk 0:01:29]} 16. Bc4 {[%clk 0:01:34]}  Ne6 {[%clk 0:01:08]} 17. Rhd1 {[%clk 0:01:24]}  Nxc5 {[%clk 0:01:07]} 18. Kb4 {[%clk 0:01:17]}  Ne4 {[%clk 0:00:58]} 19. f3 {[%clk 0:01:08]}  Nd6 {[%clk 0:00:57]} 20. Bd5 {[%clk 0:01:05]}  e6 {[%clk 0:00:54]} 21. Bb3 {[%clk 0:01:05]}  Bf8 {[%clk 0:00:51]} 22. Kc3 {[%clk 0:01:01]}  e5 {[%clk 0:00:51]} 23. Ne2 {[%clk 0:00:56]}  Nxb5+ {[%clk 0:00:51]} 24. Kc2 {[%clk 0:00:57]}  Bf5+ {[%clk 0:00:45]} 25. e4 {[%clk 0:00:57]}  Rbc8+ {[%clk 0:00:44]} 26. Kb1 {[%clk 0:00:56]}  Rxd1 {[%clk 0:00:42]} 27. Rxd1 {[%clk 0:00:56]}  Be6 {[%clk 0:00:42]} 28. Bxe6 {[%clk 0:00:55]}  fxe6 {[%clk 0:00:42]} 29. Rd7 {[%clk 0:00:55]}  Nd6 {[%clk 0:00:36]} 30. Nc3 {[%clk 0:00:51]}  b5 {[%clk 0:00:31]} 31. a3 {[%clk 0:00:49]}  Rb8 {[%clk 0:00:31]} 32. b4 {[%clk 0:00:47]}  Nc4 {[%clk 0:00:31]} 33. Ra7 {[%clk 0:00:44]}  Ne3 {[%clk 0:00:28]} 34. g3 {[%clk 0:00:41]}  Nf1 {[%clk 0:00:28]} 35. Kc2 {[%clk 0:00:40]}  Nxh2 {[%clk 0:00:28]} 36. Ra5 {[%clk 0:00:39]}  Nxf3 {[%clk 0:00:28]} 37. Kd3 {[%clk 0:00:36]}  Nd4 {[%clk 0:00:28]} 38. Ra7 {[%clk 0:00:35]}  Rd8 {[%clk 0:00:27]} 39. Ke3 {[%clk 0:00:34]}  Bh6+ {[%clk 0:00:28]} 40. Kf2 {[%clk 0:00:33]}  Bd2 {[%clk 0:00:28]} 41. Nd1 {[%clk 0:00:29]}  Rf8+ {[%clk 0:00:28]} 42. Kg2 {[%clk 0:00:29]}  Rc8 {[%clk 0:00:28]} 43. Kf2 {[%clk 0:00:28]}  Rc1 {[%clk 0:00:28]} 44. Ne3 {[%clk 0:00:26]}  Be1+ {[%clk 0:00:28]} 45. Kg2 {[%clk 0:00:26]}  Rc3 {[%clk 0:00:28]} 46. Nf1 {[%clk 0:00:25]}  Rc2+ {[%clk 0:00:28]} 47. Kh3 {[%clk 0:00:25]}  h5 {[%clk 0:00:27]} 48. Kh4 {[%clk 0:00:23]}  Nf3+ {[%clk 0:00:27]} 49. Kh3 {[%clk 0:00:23]}  g5 {[%clk 0:00:28]} 50. g4 {[%clk 0:00:22]}  Ng1# {[%clk 0:00:27]} 0-1


[Site "https://www.chess.com"]

[Event "Titled Tuesday Blitz August 3 2021"]
[White "Anuj Shrivatri"]
[Black "Gokerkan, Cem Kaan"]
[WhiteFideId "35070924"]
[BlackFideId "6336760"]
[WhiteElo "2038"]
[BlackElo "2361"]
[Result "0-1"]
[Round "03"]
[TimeControl "180+1"]
[Date "2021.08.03"]
[WhiteClock "0:00:10"]
[BlackClock "0:00:18"]

1. c4 {[%clk 0:02:55]}  e6 {[%clk 0:02:59]} 2. g3 {[%clk 0:02:55]}  d5 {[%clk 0:02:59]} 3. Bg2 {[%clk 0:02:55]}  Nf6 {[%clk 0:02:59]} 4. Nf3 {[%clk 0:02:56]}  Be7 {[%clk 0:02:54]} 5. O-O {[%clk 0:02:55]}  O-O {[%clk 0:02:54]} 6. d4 {[%clk 0:02:54]}  c5 {[%clk 0:02:39]} 7. cxd5 {[%clk 0:02:52]}  exd5 {[%clk 0:02:37]} 8. dxc5 {[%clk 0:02:52]}  Na6 {[%clk 0:02:36]} 9. a3 {[%clk 0:02:53]}  Nxc5 {[%clk 0:02:35]} 10. Nc3 {[%clk 0:02:16]}  Nce4 {[%clk 0:02:33]} 11. Nxe4 {[%clk 0:01:59]}  dxe4 {[%clk 0:02:34]} 12. Nd4 {[%clk 0:02:00]}  Bg4 {[%clk 0:02:28]} 13. h3 {[%clk 0:01:57]}  Bh5 {[%clk 0:02:27]} 14. Nf5 {[%clk 0:01:55]}  Bc5 {[%clk 0:02:19]} 15. g4 {[%clk 0:01:53]}  Bg6 {[%clk 0:02:19]} 16. Be3 {[%clk 0:01:51]}  Bxe3 {[%clk 0:02:11]} 17. Nxe3 {[%clk 0:01:50]}  Qb6 {[%clk 0:02:08]} 18. b4 {[%clk 0:01:39]}  Rfd8 {[%clk 0:02:05]} 19. Qb3 {[%clk 0:01:38]}  h5 {[%clk 0:01:57]} 20. g5 {[%clk 0:01:30]}  Nh7 {[%clk 0:01:46]} 21. h4 {[%clk 0:01:29]}  Nf8 {[%clk 0:01:44]} 22. Bh3 {[%clk 0:01:20]}  Qd6 {[%clk 0:01:38]} 23. Rad1 {[%clk 0:01:13]}  Qf4 {[%clk 0:01:38]} 24. Ng2 {[%clk 0:01:13]}  Qe5 {[%clk 0:01:38]} 25. Qg3 {[%clk 0:01:07]}  Qb2 {[%clk 0:01:32]} 26. Nf4 {[%clk 0:01:04]}  a5 {[%clk 0:01:28]} 27. Nd5 {[%clk 0:00:48]}  Qxe2 {[%clk 0:01:21]} 28. Qc7 {[%clk 0:00:37]}  Re8 {[%clk 0:01:14]} 29. Qxb7 {[%clk 0:00:25]}  axb4 {[%clk 0:01:12]} 30. Qxb4 {[%clk 0:00:25]}  Qf3 {[%clk 0:01:03]} 31. Kh2 {[%clk 0:00:19]}  Qxa3 {[%clk 0:00:50]} 32. Qxa3 {[%clk 0:00:16]}  Rxa3 {[%clk 0:00:51]} 33. Rfe1 {[%clk 0:00:16]}  Kh7 {[%clk 0:00:45]} 34. Kg2 {[%clk 0:00:16]}  Ra2 {[%clk 0:00:25]} 35. Re3 {[%clk 0:00:15]}  Rb8 {[%clk 0:00:24]} 36. Nc3 {[%clk 0:00:12]}  Rc2 {[%clk 0:00:24]} 37. Rf1 {[%clk 0:00:10]}  Rb3 {[%clk 0:00:22]} 38. Nd5 {[%clk 0:00:10]}  Rd3 {[%clk 0:00:18]} 39. Nf4 {[%clk 0:00:10]}  Rxe3 {[%clk 0:00:18]} 0-1


[Site "https://www.chess.com"]

[Event "Titled Tuesday Blitz August 3 2021"]
[White "Babazada, Khazar"]
[Black "Nguyen, Hong Anh"]
[WhiteFideId "13413554"]
[BlackFideId "12406732"]
[WhiteElo "2344"]
[BlackElo "1974"]
[Result "1-0"]
[Round "03"]
[TimeControl "180+1"]
[Date "2021.08.03"]
[WhiteClock "0:01:47"]
[BlackClock "0:00:23"]

1. e4 {[%clk 0:03:00]}  c5 {[%clk 0:02:58]} 2. Nf3 {[%clk 0:03:00]}  Nc6 {[%clk 0:02:57]} 3. Bb5 {[%clk 0:02:59]}  g6 {[%clk 0:02:57]} 4. O-O {[%clk 0:02:59]}  Bg7 {[%clk 0:02:57]} 5. Bxc6 {[%clk 0:02:58]}  dxc6 {[%clk 0:02:57]} 6. d3 {[%clk 0:02:58]}  Bg4 {[%clk 0:02:56]} 7. h3 {[%clk 0:02:58]}  Bxf3 {[%clk 0:02:57]} 8. Qxf3 {[%clk 0:02:59]}  Nf6 {[%clk 0:02:57]} 9. Nc3 {[%clk 0:02:59]}  O-O {[%clk 0:02:58]} 10. Be3 {[%clk 0:02:57]}  b6 {[%clk 0:02:56]} 11. a4 {[%clk 0:02:53]}  Nd7 {[%clk 0:02:55]} 12. a5 {[%clk 0:02:51]}  b5 {[%clk 0:02:48]} 13. Qd1 {[%clk 0:02:51]}  Qc7 {[%clk 0:02:45]} 14. d4 {[%clk 0:02:46]}  cxd4 {[%clk 0:02:41]} 15. Bxd4 {[%clk 0:02:47]}  Ne5 {[%clk 0:02:36]} 16. f4 {[%clk 0:02:36]}  Nc4 {[%clk 0:02:36]} 17. Bxg7 {[%clk 0:02:36]}  Kxg7 {[%clk 0:02:35]} 18. Qd4+ {[%clk 0:02:37]}  f6 {[%clk 0:02:34]} 19. b3 {[%clk 0:02:37]}  Nxa5 {[%clk 0:02:26]} 20. Kh1 {[%clk 0:02:20]}  Nb7 {[%clk 0:01:56]} 21. Ra6 {[%clk 0:02:03]}  Rfd8 {[%clk 0:01:39]} 22. Qe3 {[%clk 0:02:02]}  Nd6 {[%clk 0:01:37]} 23. Rfa1 {[%clk 0:01:55]}  b4 {[%clk 0:01:37]} 24. Ne2 {[%clk 0:01:54]}  c5 {[%clk 0:01:33]} 25. R1a5 {[%clk 0:01:47]}  Qb7 {[%clk 0:01:13]} 26. Ng3 {[%clk 0:01:47]}  c4 {[%clk 0:01:10]} 27. e5 {[%clk 0:01:47]}  Ne8 {[%clk 0:00:48]} 28. f5 {[%clk 0:01:47]}  cxb3 {[%clk 0:00:41]} 29. cxb3 {[%clk 0:01:48]}  Rd1+ {[%clk 0:00:34]} 30. Kh2 {[%clk 0:01:48]}  Qd7 {[%clk 0:00:27]} 31. Rxa7 {[%clk 0:01:47]}  Rxa7 {[%clk 0:00:27]} 32. Rxa7 {[%clk 0:01:48]}  Qd4 {[%clk 0:00:23]} 33. exf6+ {[%clk 0:01:47]} 1-0


[Site "https://www.chess.com"]

[Event "Titled Tuesday Blitz August 3 2021"]
[White "Baches Garcia, Guillermo"]
[Black "Ohanyan, Emin"]
[WhiteFideId "2209764"]
[BlackFideId "13312022"]
[WhiteElo "2408"]
[BlackElo "1648"]
[Result "1/2-1/2"]
[Round "03"]
[TimeControl "180+1"]
[Date "2021.08.03"]
[WhiteClock "0:00:24"]
[BlackClock "0:00:29"]

1. e4 {[%clk 0:03:00]}  e5 {[%clk 0:02:59]} 2. Nf3 {[%clk 0:03:01]}  Nc6 {[%clk 0:02:59]} 3. Nc3 {[%clk 0:03:01]}  Nf6 {[%clk 0:02:59]} 4. d4 {[%clk 0:03:01]}  Bb4 {[%clk 0:02:58]} 5. Nxe5 {[%clk 0:03:00]}  O-O {[%clk 0:02:56]} 6. Qd3 {[%clk 0:02:47]}  Re8 {[%clk 0:02:55]} 7. Bd2 {[%clk 0:02:38]}  Nxe5 {[%clk 0:02:54]} 8. dxe5 {[%clk 0:02:38]}  Rxe5 {[%clk 0:02:55]} 9. O-O-O {[%clk 0:02:32]}  Re8 {[%clk 0:02:55]} 10. f3 {[%clk 0:02:19]}  c6 {[%clk 0:02:55]} 11. a3 {[%clk 0:02:17]}  Ba5 {[%clk 0:02:45]} 12. Bg5 {[%clk 0:02:05]}  Bxc3 {[%clk 0:02:42]} 13. bxc3 {[%clk 0:01:46]}  Qa5 {[%clk 0:02:41]} 14. Bxf6 {[%clk 0:01:39]}  Qxa3+ {[%clk 0:02:41]} 15. Kd2 {[%clk 0:01:25]}  gxf6 {[%clk 0:02:40]} 16. c4 {[%clk 0:01:09]}  Qe7 {[%clk 0:02:24]} 17. Kc1 {[%clk 0:01:06]}  a5 {[%clk 0:02:23]} 18. Qd6 {[%clk 0:01:06]}  Qe5 {[%clk 0:02:19]} 19. Qxe5 {[%clk 0:01:01]}  fxe5 {[%clk 0:02:20]} 20. Rd6 {[%clk 0:00:58]}  a4 {[%clk 0:02:19]} 21. Kb2 {[%clk 0:00:55]}  Re6 {[%clk 0:02:18]} 22. Rxe6 {[%clk 0:00:47]}  dxe6 {[%clk 0:01:45]} 23. c5 {[%clk 0:00:43]}  Ra5 {[%clk 0:01:43]} 24. Be2 {[%clk 0:00:43]}  Kf8 {[%clk 0:01:40]} 25. Ra1 {[%clk 0:00:39]}  Ke7 {[%clk 0:01:34]} 26. c4 {[%clk 0:00:39]}  Rxc5 {[%clk 0:01:01]} 27. Rxa4 {[%clk 0:00:38]}  Kd6 {[%clk 0:00:53]} 28. Ra8 {[%clk 0:00:36]}  Kc7 {[%clk 0:00:51]} 29. Kc3 {[%clk 0:00:33]}  b6 {[%clk 0:00:52]} 30. h4 {[%clk 0:00:29]}  Ra5 {[%clk 0:00:52]} 31. Rxa5 {[%clk 0:00:25]}  bxa5 {[%clk 0:00:53]} 32. c5 {[%clk 0:00:24]}  f6 {[%clk 0:00:49]} 33. Kb3 {[%clk 0:00:23]}  Bd7 {[%clk 0:00:36]} 34. Ka4 {[%clk 0:00:23]}  Be8 {[%clk 0:00:37]} 35. Kxa5 {[%clk 0:00:24]}  Bg6 {[%clk 0:00:37]} 36. Bc4 {[%clk 0:00:23]}  f5 {[%clk 0:00:36]} 37. Bxe6 {[%clk 0:00:13]}  fxe4 {[%clk 0:00:36]} 38. fxe4 {[%clk 0:00:13]}  Bxe4 {[%clk 0:00:36]} 39. g4 {[%clk 0:00:14]}  Bf3 {[%clk 0:00:31]} 40. Kb4 {[%clk 0:00:13]}  Kd8 {[%clk 0:00:14]} 41. Kc3 {[%clk 0:00:12]}  Ke7 {[%clk 0:00:15]} 42. Bf5 {[%clk 0:00:12]}  h6 {[%clk 0:00:15]} 43. Kd2 {[%clk 0:00:12]}  Kf6 {[%clk 0:00:16]} 44. Ke3 {[%clk 0:00:12]}  Bd5 {[%clk 0:00:16]} 45. Be4 {[%clk 0:00:12]}  Be6 {[%clk 0:00:05]} 46. g5+ {[%clk 0:00:12]}  hxg5 {[%clk 0:00:06]} 47. hxg5+ {[%clk 0:00:12]}  Kxg5 {[%clk 0:00:07]} 48. Bxc6 {[%clk 0:00:11]}  Kf6 {[%clk 0:00:08]} 49. Bb7 {[%clk 0:00:12]}  Ke7 {[%clk 0:00:08]} 50. c6 {[%clk 0:00:12]}  Kd6 {[%clk 0:00:08]} 51. Ke4 {[%clk 0:00:12]}  Bd5+ {[%clk 0:00:08]} 52. Kf5 {[%clk 0:00:12]}  Be6+ {[%clk 0:00:08]} 53. Ke4 {[%clk 0:00:12]}  Bh3 {[%clk 0:00:08]} 54. Ke3 {[%clk 0:00:09]}  Bf5 {[%clk 0:00:08]} 55. Ba6 {[%clk 0:00:08]}  Kxc6 {[%clk 0:00:08]} 56. Be2 {[%clk 0:00:08]}  Kc5 {[%clk 0:00:08]} 57. Bf1 {[%clk 0:00:09]}  Kd6 {[%clk 0:00:08]} 58. Be2 {[%clk 0:00:10]}  Ke6 {[%clk 0:00:09]} 59. Bf1 {[%clk 0:00:10]}  Kf6 {[%clk 0:00:10]} 60. Be2 {[%clk 0:00:11]}  Kg5 {[%clk 0:00:10]} 61. Bf1 {[%clk 0:00:12]}  Kh4 {[%clk 0:00:10]} 62. Be2 {[%clk 0:00:12]}  Kg3 {[%clk 0:00:11]} 63. Bb5 {[%clk 0:00:13]}  Kg4 {[%clk 0:00:11]} 64. Bc6 {[%clk 0:00:13]}  Kg5 {[%clk 0:00:12]} 65. Bb5 {[%clk 0:00:14]}  Kf6 {[%clk 0:00:13]} 66. Bc6 {[%clk 0:00:14]}  Ke7 {[%clk 0:00:14]} 67. Bg2 {[%clk 0:00:14]}  Kd6 {[%clk 0:00:14]} 68. Bf1 {[%clk 0:00:15]}  Kc5 {[%clk 0:00:15]} 69. Be2 {[%clk 0:00:15]}  Kb4 {[%clk 0:00:16]} 70. Bf1 {[%clk 0:00:16]}  Kb3 {[%clk 0:00:17]} 71. Be2 {[%clk 0:00:17]}  Kb4 {[%clk 0:00:17]} 72. Bf1 {[%clk 0:00:17]}  Ka5 {[%clk 0:00:18]} 73. Be2 {[%clk 0:00:18]}  Kb6 {[%clk 0:00:19]} 74. Bf1 {[%clk 0:00:19]}  Kc7 {[%clk 0:00:20]} 75. Be2 {[%clk 0:00:19]}  Kd7 {[%clk 0:00:20]} 76. Bf1 {[%clk 0:00:20]}  Ke7 {[%clk 0:00:21]} 77. Be2 {[%clk 0:00:21]}  Kf7 {[%clk 0:00:22]} 78. Bf1 {[%clk 0:00:21]}  Kg7 {[%clk 0:00:23]} 79. Be2 {[%clk 0:00:22]}  Kf6 {[%clk 0:00:23]} 80. Bf1 {[%clk 0:00:23]}  Ke6 {[%clk 0:00:24]} 81. Be2 {[%clk 0:00:23]}  Bh3 {[%clk 0:00:25]} 82. Bd3 {[%clk 0:00:23]}  Kd5 {[%clk 0:00:25]} 83. Be2 {[%clk 0:00:24]}  Kc5 {[%clk 0:00:25]} 84. Bd3 {[%clk 0:00:24]}  Bg4 {[%clk 0:00:26]} 85. Bf1 {[%clk 0:00:24]}  Kb4 {[%clk 0:00:26]} 86. Bg2 {[%clk 0:00:24]}  Bf5 {[%clk 0:00:26]} 87. Bh1 {[%clk 0:00:24]}  Kc3 {[%clk 0:00:26]} 88. Bg2 {[%clk 0:00:24]}  Kc2 {[%clk 0:00:27]} 89. Bh1 {[%clk 0:00:24]}  Kd1 {[%clk 0:00:28]} 90. Be4 {[%clk 0:00:24]}  Ke1 {[%clk 0:00:29]} 91. Bxf5 {[%clk 0:00:24]}  e4 {[%clk 0:00:29]} 92. Kxe4 {[%clk 0:00:24]} 1/2-1/2


[Site "https://www.chess.com"]

[Event "Titled Tuesday Blitz August 3 2021"]
[White "Bazeev, German"]
[Black "Garv Gaur"]
[WhiteFideId "24119350"]
[BlackFideId "45030839"]
[WhiteElo "2462"]
[BlackElo "1950"]
[Result "1/2-1/2"]
[Round "03"]
[TimeControl "180+1"]
[Date "2021.08.03"]
[WhiteClock "0:00:07"]
[BlackClock "0:00:50"]

1. d4 {[%clk 0:02:59]}  d5 {[%clk 0:02:59]} 2. Nf3 {[%clk 0:02:58]}  Nf6 {[%clk 0:02:59]} 3. Bf4 {[%clk 0:02:56]}  c5 {[%clk 0:02:59]} 4. e3 {[%clk 0:02:55]}  Nc6 {[%clk 0:02:58]} 5. c3 {[%clk 0:02:53]}  Qb6 {[%clk 0:02:58]} 6. Qc1 {[%clk 0:02:52]}  Bf5 {[%clk 0:02:56]} 7. Nbd2 {[%clk 0:02:52]}  e6 {[%clk 0:02:56]} 8. Be2 {[%clk 0:02:51]}  cxd4 {[%clk 0:02:55]} 9. exd4 {[%clk 0:02:51]}  Rc8 {[%clk 0:02:54]} 10. O-O {[%clk 0:02:47]}  Be7 {[%clk 0:02:53]} 11. h3 {[%clk 0:02:46]}  h6 {[%clk 0:02:53]} 12. Bd1 {[%clk 0:02:45]}  O-O {[%clk 0:02:50]} 13. Be3 {[%clk 0:02:34]}  Ne4 {[%clk 0:02:39]} 14. Bc2 {[%clk 0:02:29]}  Nxd2 {[%clk 0:02:30]} 15. Qxd2 {[%clk 0:02:19]}  Bxc2 {[%clk 0:02:30]} 16. Qxc2 {[%clk 0:02:20]}  Bf6 {[%clk 0:02:28]} 17. Qb3 {[%clk 0:02:03]}  Na5 {[%clk 0:02:23]} 18. Qxb6 {[%clk 0:02:01]}  axb6 {[%clk 0:02:23]} 19. Nd2 {[%clk 0:02:01]}  b5 {[%clk 0:02:22]} 20. f4 {[%clk 0:01:44]}  Nc4 {[%clk 0:02:21]} 21. Nxc4 {[%clk 0:01:44]}  bxc4 {[%clk 0:02:22]} 22. g4 {[%clk 0:01:42]}  Be7 {[%clk 0:02:08]} 23. Rae1 {[%clk 0:01:38]}  Bd6 {[%clk 0:02:03]} 24. Bd2 {[%clk 0:01:34]}  b5 {[%clk 0:01:54]} 25. a3 {[%clk 0:01:34]}  Rce8 {[%clk 0:01:50]} 26. Re2 {[%clk 0:01:16]}  f6 {[%clk 0:01:43]} 27. Kg2 {[%clk 0:01:10]}  Kf7 {[%clk 0:01:43]} 28. h4 {[%clk 0:01:10]}  Ke7 {[%clk 0:01:38]} 29. h5 {[%clk 0:01:10]}  Kd7 {[%clk 0:01:37]} 30. Rf3 {[%clk 0:01:03]}  Re7 {[%clk 0:01:26]} 31. Be1 {[%clk 0:01:02]}  Ree8 {[%clk 0:01:22]} 32. Bg3 {[%clk 0:01:00]}  Re7 {[%clk 0:01:21]} 33. Bh4 {[%clk 0:01:00]}  Ree8 {[%clk 0:01:21]} 34. Ree3 {[%clk 0:00:51]}  Re7 {[%clk 0:01:15]} 35. g5 {[%clk 0:00:44]}  fxg5 {[%clk 0:01:09]} 36. fxg5 {[%clk 0:00:45]}  Ref7 {[%clk 0:01:10]} 37. Rxf7+ {[%clk 0:00:24]}  Rxf7 {[%clk 0:01:10]} 38. gxh6 {[%clk 0:00:25]}  gxh6 {[%clk 0:01:10]} 39. Rf3 {[%clk 0:00:25]}  Rxf3 {[%clk 0:01:00]} 40. Kxf3 {[%clk 0:00:26]}  Ke8 {[%clk 0:01:01]} 41. Be1 {[%clk 0:00:14]}  Kf7 {[%clk 0:01:00]} 42. Bd2 {[%clk 0:00:15]}  Kg7 {[%clk 0:01:01]} 43. Kg4 {[%clk 0:00:15]}  Bc7 {[%clk 0:00:57]} 44. Be3 {[%clk 0:00:16]}  Bd6 {[%clk 0:00:57]} 45. Bf2 {[%clk 0:00:16]}  Bc7 {[%clk 0:00:57]} 46. Bh4 {[%clk 0:00:16]}  Bd6 {[%clk 0:00:56]} 47. Bd8 {[%clk 0:00:17]}  Bh2 {[%clk 0:00:53]} 48. Bh4 {[%clk 0:00:12]}  Bd6 {[%clk 0:00:53]} 49. Bd8 {[%clk 0:00:10]}  Bh2 {[%clk 0:00:52]} 50. Be7 {[%clk 0:00:11]}  Bc7 {[%clk 0:00:52]} 51. Bc5 {[%clk 0:00:09]}  Bh2 {[%clk 0:00:51]} 52. Bb6 {[%clk 0:00:09]}  Bd6 {[%clk 0:00:50]} 53. Bd8 {[%clk 0:00:07]} 1/2-1/2


[Site "https://www.chess.com"]